fUST/lending_fUST_20250731
["ID","MTS","AMOUNT","RATE_DAILY","PERIOD"]
[376240557,1753903833310,-590.7,0.00021739,2]
[376240558,1753903833319,-460.0,0.00021739,2]
[376240559,1753903833328,-460.0,0.00021739,2]
[376240560,1753903833338,-225.96403733,0.00021739,2]
[376240561,1753903833348,-383.29138746,0.00021739,2]
[376240562,1753903833357,-460.0,0.00021739,2]
[376240563,1753903833367,-460.0,0.00021739,2]
[376240564,1753903833377,-460.0,0.00021739,2]
[376240565,1753903833386,-505.81,0.00021739,2]
[376240566,1753903833396,-460.0,0.00021739,2]
[376240567,1753903833405,-460.0,0.00021739,2]
[376240568,1753903833414,-460.0,0.00021739,2]
[376240569,1753903833424,-460.0,0.00021739,2]
[376240570,1753903833434,-460.0,0.00021739,2]
[376240571,1753903833446,-460.0,0.00021739,2]
[376240572,1753903833455,-485.73,0.00021739,2]
[376240573,1753903833464,-460.0,0.00021739,2]
[376240574,1753903833474,-460.0,0.00021739,2]
[376240575,1753903833484,-460.0,0.00021739,2]
[376240576,1753903833493,-460.0,0.00021739,2]
[376240577,1753903833503,-647.61,0.00021759,10]
[376240578,1753903833513,-1108.94,0.00021759,10]
[376240579,1753903833527,-924.12,0.00021759,10]
[376240580,1753903833539,-770.1,0.00021759,10]
[376240581,1753903833548,-641.75,0.00021759,10]
[376240582,1753903833558,-59440.10703224,0.00021769,2]
[376240583,1753903833567,-150.95560251,0.00021918,2]
[376240584,1753903833577,-569.95976149,0.00022,7]
[376240585,1753903834020,460.0,0.00020643,2]
[376240586,1753903834051,460.0,0.00020917,2]
[376240587,1753903834773,536.5,0.00019273,2]
[376240673,1753903838763,-336.340799,0.00021191,2]
[376240675,1753903838773,-371.75023851,0.00022,7]
[376240677,1753903838783,-358.93,0.00022,2]
[376240679,1753903838794,-169.0,0.00022,2]
[376240681,1753903838803,-460.0,0.00022012,2]
[376240683,1753903838813,-460.0,0.00022012,2]
[376240686,1753903838822,-460.0,0.00022012,2]
[376240689,1753903838832,-590.7,0.00022013,2]
[376240692,1753903838841,-367.03298021,0.00022013,2]
[376240695,1753903838851,-460.0,0.00022013,2]
[376240698,1753903838861,-460.0,0.00022013,2]
[376240701,1753903838871,-460.0,0.00022013,2]
[376240704,1753903838881,-460.0,0.00022013,2]
[376240707,1753903838890,-505.81,0.00022013,2]
[376240710,1753903838899,-460.0,0.00022013,2]
[376240712,1753903838908,-460.0,0.00022013,2]
[376240714,1753903838917,-460.0,0.00022013,2]
[376240716,1753903838926,-460.0,0.00022013,2]
[376240718,1753903838935,-460.0,0.00022013,2]
[376240719,1753903838944,-460.0,0.00022013,2]
[376240721,1753903838954,-485.73,0.00022013,2]
[376240723,1753903838963,-512.16359998,0.00022013,2]
[376240725,1753903838972,-460.0,0.00022013,2]
[376240727,1753903838981,-460.0,0.00022013,2]
[376240729,1753903838990,-309.17,0.00022013,2]
[376240731,1753903838999,-460.0,0.00022286,2]
[376240733,1753903839009,-460.0,0.00022286,2]
[376240734,1753903839019,-460.0,0.00022286,2]
[376240736,1753903839027,-590.7,0.00022287,2]
[376240738,1753903839038,-460.0,0.00022287,2]
[376240740,1753903839047,-460.0,0.00022287,2]
[376240742,1753903839057,-460.0,0.00022287,2]
[376240744,1753903839066,-460.0,0.00022287,2]
[376240746,1753903839076,-505.81,0.00022287,2]
[376240748,1753903839086,-460.0,0.00022287,2]
[376240750,1753903839095,-460.0,0.00022287,2]
[376240752,1753903839105,-159.87065889,0.00022287,2]
[376240754,1753903839114,-460.0,0.00022287,2]
[376240756,1753903839125,-460.0,0.00022287,2]
[376240758,1753903839134,-509.70938017,0.00022287,2]
[376240760,1753903839143,-485.73,0.00022287,2]
[376240762,1753903839153,-460.0,0.00022287,2]
[376240764,1753903839163,-325.32035837,0.00022287,2]
[376240765,1753903839172,-160.0,0.00022385,2]
[376240767,1753903839181,-38946.23198488,0.0002249,7]
[376240769,1753903839194,-3723.84626973,0.0002249,7]
[376240772,1753903839205,-13207.88867801,0.0002249,7]
[376240774,1753903839214,-562.97819947,0.0002256,2]
[376240776,1753903839225,-460.0,0.0002256,2]
[376240777,1753903839234,-460.0,0.0002256,2]
[376240779,1753903839243,-590.7,0.00022561,2]
[376240781,1753903839253,-460.0,0.00022561,2]
[376240783,1753903839262,-460.0,0.00022561,2]
[376240785,1753903839272,-385.18034299,0.00022561,2]
[376240787,1753903839281,-387.05324768,0.00022561,2]
[376240789,1753903839292,-505.81,0.00022561,2]
[376240791,1753903839301,-460.0,0.00022561,2]
[376240806,1753903839459,-460.0,0.00022561,2]
[376240808,1753903839470,-460.0,0.00022561,2]
[376240810,1753903839480,-460.0,0.00022561,2]
[376240812,1753903839491,-485.73,0.00022561,2]
[376240814,1753903839500,-460.0,0.00022561,2]
[376240816,1753903839510,-358.93,0.00022599,2]
[376240818,1753903839523,-177.11958946,0.00022834,2]
[376240820,1753903839533,-460.0,0.00022834,2]
[376240822,1753903839545,-590.7,0.00022835,2]
[376240824,1753903839554,-460.0,0.00022835,2]
[376240826,1753903839564,-460.0,0.00022835,2]
[376240828,1753903839573,-505.81,0.00022835,2]
[376240830,1753903839583,-460.0,0.00022835,2]
[376240831,1753903839592,-460.0,0.00022835,2]
[376240833,1753903839602,-460.0,0.00022835,2]
[376240835,1753903839611,-460.0,0.00022835,2]
[376240837,1753903839621,-485.73,0.00022835,2]
[376240839,1753903839631,-460.0,0.00022835,2]
[376240840,1753903839641,-260.0,0.00022933,2]
[376240842,1753903839651,-667.81,0.00023,2]
[376240844,1753903839660,-167.0,0.00023,7]
[376240846,1753903839669,-1599.68975657,0.00023,7]
[376240886,1753903840322,-196.23024343,0.00023,7]
[376240888,1753903840331,-308.212,0.00023013,2]
[376240890,1753903840341,-170.0,0.00023014,7]
[376240892,1753903840350,-460.0,0.00023108,2]
[376240894,1753903840360,-590.7,0.00023109,2]
[376240896,1753903840369,-460.0,0.00023109,2]
[376240898,1753903840378,-460.0,0.00023109,2]
[376240900,1753903840388,-505.81,0.00023109,2]
[376240902,1753903840397,-460.0,0.00023109,2]
[376240904,1753903840406,-460.0,0.00023109,2]
[376240906,1753903840416,-460.0,0.00023109,2]
[376240908,1753903840425,-460.0,0.00023109,2]
[376240910,1753903840434,-485.73,0.00023109,2]
[376240912,1753903840446,-460.0,0.00023109,2]
[376240914,1753903840455,-211.04224927,0.00023178,9]
[376240916,1753903840465,-358.93,0.00023199,2]
[376240918,1753903840473,-4834.33,0.000232,7]
[376240920,1753903840483,-500.0,0.00023373,2]
[376240922,1753903840493,-220.40059662,0.00023373,2]
[376240924,1753903840502,-500.0,0.00023373,2]
[376240926,1753903840511,-629.44958979,0.00023373,2]
[376240928,1753903840520,-500.0,0.00023373,2]
[376240930,1753903840529,-460.0,0.00023382,2]
[376240932,1753903840542,-590.7,0.00023383,2]
[376240934,1753903840551,-460.0,0.00023383,2]
[376240936,1753903840560,-460.0,0.00023383,2]
[376240938,1753903840569,-505.81,0.00023383,2]
[376240940,1753903840578,-460.0,0.00023383,2]
[376240942,1753903840588,-460.0,0.00023383,2]
[376240944,1753903840597,-460.0,0.00023383,2]
[376240945,1753903840607,-460.0,0.00023383,2]
[376240947,1753903840616,-485.73,0.00023383,2]
[376240949,1753903840625,-460.0,0.00023383,2]
[376240951,1753903840634,-9159.17632291,0.000234,2]
[376241232,1753903843224,-3295.9547651,0.000234,2]
[376241234,1753903843236,-13494.62205116,0.000234,2]
[376241641,1753903846282,460.0,0.00020643,2]
[376241678,1753903846532,460.0,0.00020917,2]
[376241823,1753903847842,-4261.64729499,0.000234,2]
[376241871,1753903848600,-14104.06374145,0.000234,2]
[376241873,1753903848609,-360.0,0.00023481,2]
[376241875,1753903848622,-160.0,0.00023524,2]
[376241877,1753903848631,-160.0,0.00023538,2]
[376241879,1753903848640,-635.0,0.00023542,2]
[376241881,1753903848649,-407.0,0.00023542,2]
[376241883,1753903848658,-425.782,0.00023542,2]
[376241884,1753903848667,-500.0,0.00023571,2]
[376241886,1753903848677,-500.0,0.00023571,2]
[376241888,1753903848686,-500.0,0.00023571,2]
[376241890,1753903848696,-500.0,0.00023571,2]
[376241892,1753903848705,-500.0,0.00023571,2]
[376241894,1753903848714,-500.0,0.00023571,2]
[376241896,1753903848723,-500.0,0.00023571,2]
[376241898,1753903848732,-500.0,0.00023571,2]
[376241900,1753903848741,-500.0,0.00023571,2]
[376241902,1753903848750,-500.0,0.00023571,2]
[376241904,1753903848759,-500.0,0.00023571,2]
[376241906,1753903848768,-500.0,0.00023571,2]
[376241908,1753903848777,-500.0,0.00023571,2]
[376241910,1753903848786,-500.0,0.00023571,2]
[376241912,1753903848796,-500.0,0.00023571,2]
[376241914,1753903848805,-500.0,0.00023571,2]
[376241916,1753903848814,-500.0,0.00023571,2]
[376241918,1753903848824,-500.0,0.00023571,2]
[376241920,1753903848834,-500.0,0.00023571,2]
[376241922,1753903848845,-500.0,0.00023571,2]
[376241924,1753903848854,-500.0,0.00023571,2]
[376241926,1753903848864,-500.0,0.00023571,2]
[376241928,1753903848873,-500.0,0.00023571,2]
[376241930,1753903848883,-500.0,0.00023571,2]
[376241932,1753903848892,-500.0,0.00023571,2]
[376241934,1753903848902,-500.0,0.00023571,2]
[376241936,1753903848911,-500.0,0.00023571,2]
[376241938,1753903848920,-500.0,0.00023571,2]
[376241940,1753903848929,-500.0,0.00023571,2]
[376241942,1753903848938,-500.0,0.00023571,2]
[376241944,1753903848947,-500.0,0.00023571,2]
[376241946,1753903848957,-500.0,0.00023571,2]
[376241948,1753903848966,-500.0,0.00023571,2]
[376241950,1753903848975,-500.0,0.00023571,2]
[376241952,1753903848984,-500.0,0.00023571,2]
[376241954,1753903848994,-500.0,0.00023571,2]
[376241956,1753903849004,-500.0,0.00023571,2]
[376241958,1753903849013,-500.0,0.00023571,2]
[376241960,1753903849023,-500.0,0.00023571,2]
[376241962,1753903849032,-500.0,0.00023571,2]
[376241964,1753903849041,-500.0,0.00023571,2]
[376241966,1753903849056,-500.0,0.00023571,2]
[376241968,1753903849066,-500.0,0.00023571,2]
[376241970,1753903849077,-500.0,0.00023571,2]
[376241972,1753903849086,-500.0,0.00023571,2]
[376241974,1753903849096,-500.0,0.00023571,2]
[376241976,1753903849105,-500.0,0.00023571,2]
[376241978,1753903849114,-500.0,0.00023571,2]
[376241980,1753903849124,-500.0,0.00023571,2]
[376241982,1753903849133,-500.0,0.00023571,2]
[376241984,1753903849143,-164.55296562,0.00023571,2]
[376241986,1753903849152,-500.0,0.00023571,2]
[376241988,1753903849161,-500.0,0.00023571,2]
[376241990,1753903849171,-200.0,0.00023572,15]
[376241992,1753903849180,-200.0,0.00023572,15]
[376241994,1753903849190,-200.0,0.00023572,15]
[376241996,1753903849199,-200.0,0.00023572,15]
[376241998,1753903849208,-200.0,0.00023572,15]
[376241999,1753903849217,-200.0,0.00023572,15]
[376242002,1753903849227,-200.0,0.00023572,15]
[376242003,1753903849237,-200.0,0.00023572,15]
[376242005,1753903849247,-200.0,0.00023572,15]
[376242008,1753903849260,-200.0,0.00023572,15]
[376242010,1753903849269,-200.0,0.00023572,15]
[376242012,1753903849279,-200.0,0.00023572,15]
[376242013,1753903849288,-200.0,0.00023572,15]
[376242015,1753903849300,-200.0,0.00023572,15]
[376242017,1753903849309,-460.0,0.00023656,2]
[376242019,1753903849319,-590.7,0.00023657,2]
[376242021,1753903849329,-460.0,0.00023657,2]
[376242023,1753903849338,-505.81,0.00023657,2]
[376242025,1753903849348,-460.0,0.00023657,2]
[376242027,1753903849358,-460.0,0.00023657,2]
[376242030,1753903849367,-460.0,0.00023657,2]
[376242032,1753903849379,-460.0,0.00023657,2]
[376242034,1753903849388,-485.73,0.00023657,2]
[376242036,1753903849397,-460.0,0.00023657,2]
[376242038,1753903849406,-155.838336,0.00023716,5]
[376242039,1753903849415,-752.22,0.00023769,7]
[376242041,1753903849424,-507.01,0.00023769,7]
[376242043,1753903849437,-358.93,0.00023798,2]
[376242045,1753903849446,-507.01,0.00023869,7]
[376242047,1753903849456,-500.0,0.00023921,2]
[376242049,1753903849465,-460.0,0.0002393,2]
[376242052,1753903849475,-590.7,0.00023931,2]
[376242053,1753903849484,-460.0,0.00023931,2]
[376242055,1753903849493,-505.81,0.00023931,2]
[376242057,1753903849503,-460.0,0.00023931,2]
[376242059,1753903849513,-460.0,0.00023931,2]
[376242061,1753903849523,-460.0,0.00023931,2]
[376242063,1753903849533,-460.0,0.00023931,2]
[376242065,1753903849542,-485.73,0.00023931,2]
[376242067,1753903849553,-460.0,0.00023931,2]
[376242069,1753903849562,-507.02,0.00023969,7]
[376242071,1753903849571,-941.71,0.00024,7]
[376242073,1753903849581,-460.0,0.00024028,2]
[376242075,1753903849589,-460.0,0.00024204,2]
[376242077,1753903849598,-590.7,0.00024205,2]
[376242079,1753903849607,-460.0,0.00024205,2]
[376242081,1753903849616,-505.81,0.00024205,2]
[376242083,1753903849625,-460.0,0.00024205,2]
[376242085,1753903849634,-460.0,0.00024205,2]
[376242087,1753903849643,-551.02420532,0.00024205,2]
[376242089,1753903849652,-460.0,0.00024205,2]
[376242091,1753903849662,-485.73,0.00024205,2]
[376242093,1753903849671,-460.0,0.00024205,2]
[376242095,1753903849681,-155.838336,0.00024256,2]
[376242097,1753903849690,-358.93,0.00024398,2]
[376242099,1753903849700,-500.0,0.00024449,2]
[376242101,1753903849710,-460.0,0.00024478,2]
[376242103,1753903849719,-590.7,0.00024479,2]
[376242105,1753903849728,-460.0,0.00024479,2]
[376242107,1753903849737,-505.81,0.00024479,2]
[376242109,1753903849747,-460.0,0.00024479,2]
[376242111,1753903849756,-460.0,0.00024479,2]
[376242113,1753903849765,-460.0,0.00024479,2]
[376242115,1753903849774,-485.73,0.00024479,2]
[376242117,1753903849784,-460.0,0.00024479,2]
[376242119,1753903849793,-500.0,0.00024555,2]
[376242121,1753903849806,-180.0,0.00024576,2]
[376242123,1753903849815,-290.0304699,0.00024658,2]
[376242125,1753903849824,-500.0,0.00024683,2]
[376242127,1753903849833,-542.23,0.00024752,2]
[376242129,1753903849843,-590.7,0.00024753,2]
[376242131,1753903849852,-460.0,0.00024753,2]
[376242133,1753903849861,-505.81,0.00024753,2]
[376242135,1753903849870,-460.0,0.00024753,2]
[376242137,1753903849880,-460.0,0.00024753,2]
[376242139,1753903849889,-460.0,0.00024753,2]
[376242141,1753903849898,-485.73,0.00024753,2]
[376242143,1753903849907,-150.96977201,0.00024753,2]
[376242145,1753903849917,-773.77013342,0.000248,2]
[376242147,1753903849926,-500.0,0.00024868,2]
[376242149,1753903849936,-200.0,0.00024873,2]
[376242151,1753903849945,-153.0,0.00024877,2]
[376242153,1753903849955,-534.79,0.0002489,10]
[376242155,1753903849964,-55252.55300964,0.000249,2]
[376242158,1753903849978,-121960.47694136,0.000249,2]
[376242160,1753903849987,-1795.92,0.000249,7]
[376242162,1753903849996,-508.95694202,0.00024926,2]
[376242164,1753903850005,-155.838336,0.0002495,15]
[376242166,1753903850014,-153.701076,0.0002495,15]
[376242168,1753903850023,-500.0,0.00024955,2]
[376242170,1753903850032,-30970.01824382,0.00025,7]
[376242171,1753903850042,-1064.43591172,0.00025,2]
[376242173,1753903850054,-16011.27014274,0.00025,2]
[376242175,1753903850063,-2620.97689319,0.00025,2]
[376242177,1753903850072,-207.83779974,0.00025,2]
[376242179,1753903850081,-10364.0,0.00025,2]
[376242181,1753903850090,-358.78794893,0.00025,2]
[376242183,1753903850099,-15317.77951118,0.00025,14]
[376242185,1753903850107,-500.0,0.00025,2]
[376242187,1753903850116,-120000.0,0.00025,2]
[376242189,1753903850126,-150.99999985,0.00025,5]
[376242191,1753903850135,-600.0,0.00025,2]
[376242193,1753903850143,-4834.33,0.00025,7]
[376242195,1753903850152,-358.93,0.00025,7]
[376242197,1753903850161,-500.0,0.00025012,2]
[376242199,1753903850170,-168.0,0.00025018,2]
[376242201,1753903850179,-590.7,0.00025027,2]
[376242203,1753903850188,-460.0,0.00025027,2]
[376242205,1753903850198,-505.81,0.00025027,2]
[376242208,1753903850208,-460.0,0.00025027,2]
[376242209,1753903850217,-460.0,0.00025027,2]
[376242211,1753903850226,-527.82924801,0.00025027,2]
[376242213,1753903850235,-485.73,0.00025027,2]
[376242215,1753903850244,-500.0,0.00025186,2]
[376242218,1753903850254,-150.0,0.00025266,30]
[376242220,1753903850265,-153.0,0.00025278,2]
[376242222,1753903850274,-153.0,0.00025278,2]
[376242224,1753903850285,-500.0,0.0002529,2]
[376242226,1753903850295,-590.7,0.00025301,2]
[376242228,1753903850305,-460.0,0.00025301,2]
[376242230,1753903850314,-505.81,0.00025301,2]
[376242232,1753903850323,-220.11375354,0.00025301,2]
[376242234,1753903850332,-184.48564229,0.00025301,2]
[376242236,1753903850341,-485.73,0.00025301,2]
[376242238,1753903850351,-500.0,0.00025316,2]
[376242240,1753903850360,-500.0,0.00025323,2]
[376242242,1753903850369,-168.0,0.00025336,2]
[376242244,1753903850378,-500.0,0.00025358,2]
[376242246,1753903850388,-500.0,0.000254,2]
[376242248,1753903850397,-500.0,0.00025409,2]
[376242250,1753903850406,-200.0,0.00025421,2]
[376242252,1753903850415,-168.0,0.00025485,2]
[376242254,1753903850424,-224.5,0.000255,2]
[376242256,1753903850433,-500.0,0.0002551,5]
[376242258,1753903850446,-500.0,0.0002554,5]
[376242260,1753903850456,-500.0,0.00025561,2]
[376242262,1753903850465,-590.7,0.00025575,2]
[376242264,1753903850475,-460.0,0.00025575,2]
[376242266,1753903850484,-505.81,0.00025575,2]
[376242268,1753903850493,-485.73,0.00025575,2]
[376242270,1753903850503,-500.0,0.00025576,2]
[376242272,1753903850512,-358.93,0.00025596,7]
[376242274,1753903850522,-500.0,0.00025673,2]
[376242276,1753903850531,-500.0,0.00025687,2]
[376242278,1753903850540,-205.0,0.0002579,2]
[376242280,1753903850550,-155.2057358,0.00025837,2]
[376242282,1753903850559,-177213.029951,0.00025839,2]
[376242284,1753903850568,-773.77013342,0.00025839,2]
[376242286,1753903850577,-590.7,0.00025849,2]
[376242288,1753903850586,-460.0,0.00025849,2]
[376242290,1753903850595,-505.81,0.00025849,2]
[376242292,1753903850604,-485.73,0.00025849,2]
[376242293,1753903850614,-200.0,0.00025874,15]
[376242296,1753903850624,-200.0,0.00025874,15]
[376242298,1753903850633,-200.0,0.00025874,15]
[376242300,1753903850642,-200.0,0.00025874,15]
[376242302,1753903850652,-200.0,0.00025874,15]
[376242304,1753903850664,-200.0,0.00025874,15]
[376242306,1753903850673,-200.0,0.00025874,15]
[376242308,1753903850682,-200.0,0.00025874,15]
[376242310,1753903850691,-200.0,0.00025874,15]
[376242312,1753903850700,-200.0,0.00025874,15]
[376242314,1753903850709,-200.0,0.00025874,15]
[376242316,1753903850718,-200.0,0.00025874,15]
[376242318,1753903850727,-200.0,0.00025874,15]
[376242320,1753903850736,-200.0,0.00025874,15]
[376242322,1753903850745,-200.0,0.00025874,15]
[376242324,1753903850755,-200.0,0.00025874,15]
[376242326,1753903850764,-200.0,0.00025874,15]
[376242328,1753903850772,-200.0,0.00025874,15]
[376242330,1753903850782,-316.0,0.00025874,15]
[376242331,1753903850790,-941.71,0.000259,7]
[376242333,1753903850802,-500.0,0.00025923,2]
[376242334,1753903850811,-500.0,0.0002594,2]
[376242335,1753903850820,-156.143482,0.0002598,20]
[376242336,1753903850830,-155.838336,0.0002598,20]
[376242337,1753903850839,-153.701076,0.0002598,20]
[376242338,1753903850849,-500.0,0.00026017,2]
[376242339,1753903850858,-590.7,0.00026123,2]
[376242340,1753903850867,-460.0,0.00026123,2]
[376242342,1753903850877,-505.81,0.00026123,2]
[376242345,1753903850886,-485.73,0.00026123,2]
[376242347,1753903850895,-205.0,0.0002615,2]
[376242349,1753903850904,-500.0,0.0002619,2]
[376242351,1753903850913,-358.93,0.00026196,7]
[376242353,1753903850922,-500.0,0.00026244,2]
[376242355,1753903850931,-580.57869052,0.00026249,2]
[376242356,1753903850940,-500.0,0.00026264,2]
[376242359,1753903850949,-168.0,0.00026297,2]
[376242361,1753903850960,-500.0,0.00026344,2]
[376242363,1753903850969,-221.75894399,0.00026344,2]
[376242365,1753903850978,-198.0,0.00026344,2]
[376242367,1753903850987,-500.0,0.00026344,2]
[376242369,1753903850997,-151.0,0.00026344,2]
[376242371,1753903851006,-198.0,0.00026344,2]
[376242373,1753903851016,-151.0,0.00026344,2]
[376242375,1753903851025,-500.0,0.00026396,2]
[376242377,1753903851034,-590.7,0.00026397,2]
[376242379,1753903851044,-484.24943127,0.00026397,2]
[376242381,1753903851055,-505.81,0.00026397,2]
[376242383,1753903851064,-485.73,0.00026397,2]
[376242385,1753903851074,-500.0,0.00026399,2]
[376242387,1753903851083,-10768.29310066,0.00026412,2]
[376242389,1753903851092,-430.02818816,0.00026473,2]
[376242390,1753903851102,-163547.05172238,0.00026488,2]
[376243146,1753903858656,460.0,0.00020643,2]
[376243233,1753903862078,460.0,0.00020643,2]
[376243234,1753903862376,510.82,0.00020917,2]
[376243235,1753903863715,460.0,0.00020643,2]
[376243236,1753903866149,460.0,0.00020917,2]
[376243237,1753903867992,460.0,0.00020643,2]
[376243238,1753903870928,460.0,0.00020643,2]
[376243239,1753903871178,460.0,0.00020917,2]
[376243240,1753903872044,460.0,0.00020643,2]
[376243241,1753903881371,460.0,0.00020643,2]
[376243242,1753903885986,460.0,0.00020643,2]
[376243243,1753903887878,393.77934853,0.00020643,2]
[376243244,1753903887913,66.22065147,0.00020643,2]
[376243245,1753903888122,460.0,0.00020917,2]
[376243246,1753903892786,460.0,0.00020643,2]
[376243247,1753903913225,460.0,0.00020643,2]
[376243248,1753903914681,460.0,0.00020643,2]
[376243249,1753903915075,460.0,0.00020917,2]
[376243250,1753903949931,460.0,0.00019273,2]
[376243251,1753903950436,460.0,0.00019547,2]
[376243252,1753903950778,460.0,0.00019821,2]
[376243253,1753903953416,460.0,0.00020095,2]
[376243254,1753903953923,401.04,0.00020369,2]
[376243255,1753903955137,460.0,0.00020643,2]
[376243256,1753903955643,460.0,0.00020917,2]
[376243257,1753903997465,460.0,0.00020643,2]
[376243258,1753903997793,460.0,0.00020917,2]
[376243259,1753903999921,460.0,0.00020643,2]
[376243260,1753904013825,460.0,0.00019273,2]
[376243261,1753904014367,460.0,0.00019547,2]
[376243262,1753904015535,460.0,0.00019821,2]
[376243263,1753904015880,349.53045077,0.00020095,2]
[376243264,1753904017913,460.0,0.00019273,2]
[376243265,1753904018473,460.0,0.00019547,2]
[376243266,1753904023741,443.20889776,0.00019821,2]
[376243267,1753904023765,16.79110224,0.00019821,2]
[376243268,1753904024280,460.0,0.00020095,2]
[376243269,1753904024677,460.0,0.00020369,2]
[376243270,1753904026062,460.0,0.00020643,2]
[376243271,1753904027341,460.0,0.00020917,2]
[376243272,1753904034973,460.0,0.00020643,2]
[376243273,1753904038543,460.0,0.00020643,2]
[376243274,1753904040402,460.0,0.00020643,2]
[376243275,1753904040679,406.52,0.00020917,2]
[376243276,1753904044432,460.0,0.00020643,2]
[376243277,1753904044772,460.0,0.00020917,2]
[376243278,1753904048852,460.0,0.00020643,2]
[376243279,1753904049188,460.0,0.00020917,2]
[376243280,1753904068420,532.01,0.00020643,2]
[376243284,1753904086341,599.33,0.00019273,2]
[376243285,1753904088369,460.0,0.00020643,2]
[376243286,1753904088620,460.0,0.00020917,2]
[376243287,1753904104473,460.0,0.00019273,2]
[376243288,1753904104884,460.0,0.00019547,2]
[376243289,1753904105501,460.0,0.00019821,2]
[376243290,1753904105983,460.0,0.00020095,2]
[376243291,1753904106297,460.0,0.00020369,2]
[376243292,1753904106790,165.34889776,0.00020643,2]
[376243293,1753904106814,294.65110224,0.00020643,2]
[376243294,1753904107743,460.0,0.00020917,2]
[376243295,1753904110769,460.0,0.00020643,2]
[376243296,1753904111584,460.0,0.00020917,2]
[376243298,1753904243630,173.318445,0.00013699,2]
[376243301,1753904322446,460.0,0.00019273,2]
[376243302,1753904322962,460.0,0.00019547,2]
[376243303,1753904323404,460.0,0.00019821,2]
[376243304,1753904323810,460.0,0.00020095,2]
[376243305,1753904325022,460.0,0.00020369,2]
[376243306,1753904326131,460.0,0.00020643,2]
[376243307,1753904326679,460.0,0.00020917,2]
[376243308,1753904329944,155.46323122,0.00020643,2]
[376243309,1753904381562,546.55783587,0.00020643,2]
[376243310,1753904463313,1214.92158579,0.00020917,2]
[376243311,1753904524428,3015.08779988,0.00020546,2]
[376243312,1753904524454,2318.75987402,0.00020546,2]
[376243334,1753904698467,460.0,0.00019273,2]
[376243335,1753904699002,460.0,0.00019547,2]
[376243336,1753904700142,460.0,0.00019821,2]
[376243337,1753904700714,460.0,0.00020095,2]
[376243338,1753904701325,460.0,0.00020369,2]
[376243339,1753904701916,460.0,0.00020643,2]
[376243340,1753904702618,460.0,0.00020917,2]
[376243341,1753904720419,4461.24012598,0.00020609,2]
[376243342,1753904720441,10000.0,0.00020609,2]
[376243343,1753904720465,10000.0,0.00020609,2]
[376243344,1753904720488,438.75987402,0.00020609,2]